[Event "Live Chess"]
[Site "Chess.com"]
[Date "2023.05.20"]
[Round "-"]
[White "Enhard"]
[Black "BearFromUkraine"]
[Result "1-0"]
[WhiteElo "1390"]
[BlackElo "1166"]
[TimeControl "300"]
[EndTime "9:43:58 PDT"]
[Termination "Enhard won by resignation"]

1. d4 {[%clk 0:04:57.8]} 1... d5 {[%clk 0:04:58.1]} 2. c4 {[%clk 0:04:55.1]}
2... e6 {[%clk 0:04:54]} 3. a3 {[%clk 0:04:52.8]} 3... Nf6 {[%clk 0:04:51.3]} 4.
Nc3 {[%clk 0:04:51.3]} 4... Be7 {[%clk 0:04:43.4]} 5. Bg5 {[%clk 0:04:50.1]}
5... O-O {[%clk 0:04:41.7]} 6. e3 {[%clk 0:04:47.9]} 6... Bd7 {[%clk 0:04:37.5]}
7. Be2 {[%clk 0:04:45.6]} 7... dxc4 {[%clk 0:04:35.2]} 8. Bxc4 {[%clk
0:04:42.3]} 8... Nc6 {[%clk 0:04:30.7]} 9. Nf3 {[%clk 0:04:40.8]} 9... h6 {[%clk
0:04:22.4]} 10. Bh4 {[%clk 0:04:38]} 10... Be8 {[%clk 0:03:49.4]} 11. O-O {[%clk
0:04:35.5]} 11... a6 {[%clk 0:03:23.4]} 12. Rc1 {[%clk 0:04:29]} 12... b5 {[%clk
0:03:17.5]} 13. Be2 {[%clk 0:04:24.1]} 13... Nd5 {[%clk 0:03:12.2]} 14. Bxe7
{[%clk 0:04:21.4]} 14... Qxe7 {[%clk 0:03:08]} 15. Nxd5 {[%clk 0:04:14.7]} 15...
exd5 {[%clk 0:03:07]} 16. b4 {[%clk 0:04:12.3]} 16... Bd7 {[%clk 0:02:53.7]} 17.
Rc5 {[%clk 0:04:02.9]} 17... Qe6 {[%clk 0:02:42.1]} 18. Qd2 {[%clk 0:03:49.8]}
18... Rfe8 {[%clk 0:02:30.6]} 19. Rfc1 {[%clk 0:03:46.9]} 19... Rac8 {[%clk
0:02:26.7]} 20. Qd1 {[%clk 0:03:06.4]} 20... Qd6 {[%clk 0:02:08.9]} 21. Nd2
{[%clk 0:02:55.7]} 21... Ne7 {[%clk 0:02:05.5]} 22. Bg4 {[%clk 0:02:51.9]} 22...
Bxg4 {[%clk 0:01:57.8]} 23. Qxg4 {[%clk 0:02:49.9]} 23... Ng6 {[%clk 0:01:52]}
24. Nf3 {[%clk 0:02:42]} 24... c6 {[%clk 0:01:23.6]} 25. g3 {[%clk 0:02:22.2]}
25... Qe6 {[%clk 0:01:21.6]} 26. Qxe6 {[%clk 0:02:14.6]} 26... Rxe6 {[%clk
0:01:20.3]} 27. Nd2 {[%clk 0:02:06.8]} 27... Kf8 {[%clk 0:01:03.4]} 28. Nb3
{[%clk 0:02:05.5]} 28... Ke7 {[%clk 0:00:59.3]} 29. Na5 {[%clk 0:02:04.3]} 29...
Kd7 {[%clk 0:00:58.6]} 30. Kg2 {[%clk 0:01:55.2]} 30... Ne7 {[%clk 0:00:50.8]}
31. h3 {[%clk 0:01:43.6]} 31... h5 {[%clk 0:00:47.5]} 32. h4 {[%clk 0:01:41.6]}
32... Nf5 {[%clk 0:00:46.4]} 33. Kf3 {[%clk 0:01:33.8]} 33... Rf6 {[%clk
0:00:41.1]} 34. Ke2 {[%clk 0:01:29.5]} 34... Re6 {[%clk 0:00:37.3]} 35. Nb3
{[%clk 0:01:21.2]} 35... f6 {[%clk 0:00:33.8]} 36. Nd2 {[%clk 0:01:19.1]} 36...
g5 {[%clk 0:00:32.5]} 37. hxg5 {[%clk 0:01:17.3]} 37... fxg5 {[%clk 0:00:32.4]}
38. Nf3 {[%clk 0:01:15.4]} 38... Rg6 {[%clk 0:00:26.3]} 39. Ne5+ {[%clk
0:01:13.6]} 1-0

[Event "Live Chess"]
[Site "Chess.com"]
[Date "2023.05.20"]
[Round "-"]
[White "miguelchuk"]
[Black "NAZRIZ1977"]
[Result "0-1"]
[WhiteElo "1636"]
[BlackElo "2115"]
[TimeControl "300"]
[EndTime "9:44:01 PDT"]
[Termination "NAZRIZ1977 won on time"]

1. Nf3 {[%clk 0:04:57.7]} 1... g6 {[%clk 0:04:58.6]} 2. c4 {[%clk 0:04:55.2]}
2... Bg7 {[%clk 0:04:57.8]} 3. Nc3 {[%clk 0:04:54.5]} 3... c5 {[%clk 0:04:57.1]}
4. a3 {[%clk 0:04:46]} 4... Nf6 {[%clk 0:04:56.1]} 5. b4 {[%clk 0:04:44]} 5...
cxb4 {[%clk 0:04:53.8]} 6. axb4 {[%clk 0:04:42.5]} 6... O-O {[%clk 0:04:53.7]}
7. g3 {[%clk 0:04:40.3]} 7... d5 {[%clk 0:04:52.7]} 8. Bg2 {[%clk 0:04:30.9]}
8... d4 {[%clk 0:04:50.4]} 9. Na4 {[%clk 0:04:12.5]} 9... d3 {[%clk 0:04:47]}
10. Bb2 {[%clk 0:04:06.7]} 10... dxe2 {[%clk 0:04:42.5]} 11. Qxe2 {[%clk
0:04:03.4]} 11... Nc6 {[%clk 0:04:37.5]} 12. Bc3 {[%clk 0:03:55.6]} 12... Bf5
{[%clk 0:04:33]} 13. Nb2 {[%clk 0:03:48.4]} 13... e5 {[%clk 0:04:24.4]} 14. O-O
{[%clk 0:03:44.5]} 14... e4 {[%clk 0:04:19.4]} 15. Ne5 {[%clk 0:03:20.6]} 15...
Nxe5 {[%clk 0:04:12.1]} 16. Bxe5 {[%clk 0:03:19.2]} 16... Re8 {[%clk 0:04:11.4]}
17. Bc3 {[%clk 0:03:13.2]} 17... Bg4 {[%clk 0:04:08.6]} 18. Qe3 {[%clk
0:03:03.1]} 18... a6 {[%clk 0:04:03.9]} 19. h3 {[%clk 0:02:30.1]} 19... Bd7
{[%clk 0:03:56.5]} 20. Na4 {[%clk 0:02:19.1]} 20... Bxa4 {[%clk 0:03:41.3]} 21.
Rxa4 {[%clk 0:02:17.5]} 21... Rc8 {[%clk 0:03:40.8]} 22. c5 {[%clk 0:02:13.5]}
22... Nd5 {[%clk 0:03:33.5]} 23. Qe1 {[%clk 0:02:01.8]} 23... Nxc3 {[%clk
0:03:28.3]} 24. dxc3 {[%clk 0:02:00.3]} 24... Qd3 {[%clk 0:03:27.9]} 25. Qd1
{[%clk 0:01:46.6]} 25... Red8 {[%clk 0:03:19.9]} 26. Qxd3 {[%clk 0:01:18.9]}
26... Rxd3 {[%clk 0:03:17.8]} 27. Bxe4 {[%clk 0:01:13.3]} 27... Rd7 {[%clk
0:03:09]} 28. c4 {[%clk 0:01:02]} 28... Rcc7 {[%clk 0:02:55.8]} 29. c6 {[%clk
0:00:36.4]} 29... bxc6 {[%clk 0:02:46.3]} 30. Rxa6 {[%clk 0:00:35.5]} 30... Rd4
{[%clk 0:02:40.9]} 31. Ra8+ {[%clk 0:00:26.5]} 31... Bf8 {[%clk 0:02:38.4]} 32.
Bxc6 {[%clk 0:00:16.5]} 32... Rxc6 {[%clk 0:02:35.2]} 33. b5 {[%clk 0:00:14.9]}
33... Rcxc4 {[%clk 0:02:34]} 34. b6 {[%clk 0:00:13.3]} 34... Rb4 {[%clk
0:02:33.1]} 35. Rc1 {[%clk 0:00:09.9]} 35... Kg7 {[%clk 0:02:26.3]} 36. Rcc8
{[%clk 0:00:07.7]} 36... Bd6 {[%clk 0:02:25]} 37. Rg8+ {[%clk 0:00:04.8]} 37...
Kf6 {[%clk 0:02:23.9]} 0-1

[Event "Live Chess"]
[Site "Chess.com"]
[Date "2023.05.20"]
[Round "-"]
[White "grillage"]
[Black "Vedant-1411"]
[Result "1-0"]
[WhiteElo "1841"]
[BlackElo "871"]
[TimeControl "300"]
[EndTime "9:44:04 PDT"]
[Termination "grillage won by resignation"]

1. d4 {[%clk 0:04:59.2]} 1... d5 {[%clk 0:04:50.9]} 2. Nc3 {[%clk 0:04:50.2]}
2... Nc6 {[%clk 0:04:50.1]} 3. Bf4 {[%clk 0:04:47.9]} 3... a6 {[%clk 0:04:46.3]}
4. e3 {[%clk 0:04:40.4]} 4... Nf6 {[%clk 0:04:45.7]} 5. Nf3 {[%clk 0:04:36]}
5... Bf5 {[%clk 0:04:45]} 6. a3 {[%clk 0:04:33.8]} 6... e6 {[%clk 0:04:42.2]} 7.
Ne5 {[%clk 0:04:32.8]} 7... Bd6 {[%clk 0:04:40.2]} 8. Bd3 {[%clk 0:04:25.2]}
8... Bg6 {[%clk 0:04:34.7]} 9. Nxc6 {[%clk 0:04:22.9]} 9... bxc6 {[%clk
0:04:32.3]} 10. Qf3 {[%clk 0:04:18.9]} 10... Nh5 {[%clk 0:04:21.7]} 11. Bxd6
{[%clk 0:04:13.4]} 11... Qxd6 {[%clk 0:04:17.9]} 12. Na4 {[%clk 0:04:04.4]}
12... Nf6 {[%clk 0:04:15.1]} 13. Nc5 {[%clk 0:04:02]} 13... Bh5 {[%clk
0:04:08.7]} 14. Qg3 {[%clk 0:03:53.1]} 14... Qxg3 {[%clk 0:04:06.2]} 15. hxg3
{[%clk 0:03:52.7]} 15... O-O {[%clk 0:04:03.2]} 16. f3 {[%clk 0:03:25]} 16...
Bg6 {[%clk 0:03:52.6]} 17. Bxg6 {[%clk 0:03:19.1]} 17... fxg6 {[%clk 0:03:51.1]}
18. Ke2 {[%clk 0:03:13.5]} 18... Nh5 {[%clk 0:03:41.5]} 19. Rh3 {[%clk
0:03:10.5]} 19... Nf6 {[%clk 0:03:30.7]} 20. Nxe6 {[%clk 0:03:07.4]} 20... Rf7
{[%clk 0:03:23.8]} 21. Rah1 {[%clk 0:03:01.4]} 21... h6 {[%clk 0:03:19.4]} 22.
Nf4 {[%clk 0:02:53.5]} 22... g5 {[%clk 0:03:12.3]} 23. Nd3 {[%clk 0:02:51.5]}
23... h5 {[%clk 0:03:10.9]} 24. Ne5 {[%clk 0:02:49.1]} 24... Re7 {[%clk
0:03:04.5]} 25. Nxc6 {[%clk 0:02:47.1]} 25... Re6 {[%clk 0:03:03.1]} 26. Nb4
{[%clk 0:02:40.5]} 26... a5 {[%clk 0:03:00.5]} 27. Nd3 {[%clk 0:02:38.3]} 27...
Rb8 {[%clk 0:02:59.3]} 28. b3 {[%clk 0:02:36.9]} 28... Ra8 {[%clk 0:02:51.7]}
29. Ne5 {[%clk 0:02:35]} 29... a4 {[%clk 0:02:48.3]} 30. b4 {[%clk 0:02:33.4]}
30... Rc8 {[%clk 0:02:19.5]} 31. Ng4 {[%clk 0:02:18]} 31... Nxg4 {[%clk
0:02:16.9]} 32. fxg4 {[%clk 0:02:16.2]} 32... hxg4 {[%clk 0:02:14.5]} 33. Rh8+
{[%clk 0:02:14.9]} 33... Kf7 {[%clk 0:02:13.3]} 34. Rxc8 {[%clk 0:02:13.6]} 1-0

[Event "Live Chess"]
[Site "Chess.com"]
[Date "2023.05.20"]
[Round "-"]
[White "f4nomore"]
[Black "HoarseyHorsey"]
[Result "0-1"]
[WhiteElo "1358"]
[BlackElo "1405"]
[TimeControl "300"]
[EndTime "9:44:07 PDT"]
[Termination "HoarseyHorsey won by resignation"]

1. d4 {[%clk 0:04:57.6]} 1... Nf6 {[%clk 0:04:57.1]} 2. Bg5 {[%clk 0:04:55.7]}
2... d5 {[%clk 0:04:55.6]} 3. Bxf6 {[%clk 0:04:53.7]} 3... exf6 {[%clk
0:04:55.5]} 4. Nf3 {[%clk 0:04:52.4]} 4... Bg4 {[%clk 0:04:51.7]} 5. e3 {[%clk
0:04:51.3]} 5... Bd6 {[%clk 0:04:49.1]} 6. Be2 {[%clk 0:04:50]} 6... O-O {[%clk
0:04:47.7]} 7. O-O {[%clk 0:04:48.9]} 7... Nd7 {[%clk 0:04:43.3]} 8. h3 {[%clk
0:04:47.8]} 8... Bh5 {[%clk 0:04:41.6]} 9. Nh2 {[%clk 0:04:46.9]} 9... Bg6
{[%clk 0:04:39.4]} 10. Bd3 {[%clk 0:04:45.2]} 10... c5 {[%clk 0:04:32.3]} 11. c3
{[%clk 0:04:38.8]} 11... cxd4 {[%clk 0:04:23.4]} 12. cxd4 {[%clk 0:04:35.7]}
12... Rc8 {[%clk 0:04:20]} 13. Nc3 {[%clk 0:04:33.1]} 13... Nb6 {[%clk
0:04:11.4]} 14. Bxg6 {[%clk 0:04:27.5]} 14... fxg6 {[%clk 0:04:09.8]} 15. Nf3
{[%clk 0:04:20.1]} 15... a6 {[%clk 0:04:01.2]} 16. a3 {[%clk 0:04:18.3]} 16...
Re8 {[%clk 0:03:52.8]} 17. Qb3 {[%clk 0:04:13]} 17... Bc7 {[%clk 0:03:47.3]} 18.
Na4 {[%clk 0:03:59.2]} 18... Nxa4 {[%clk 0:03:44.4]} 19. Qxa4 {[%clk 0:03:56.9]}
19... h5 {[%clk 0:03:26.2]} 20. Rac1 {[%clk 0:03:53.9]} 20... Kh7 {[%clk
0:03:24]} 21. Nd2 {[%clk 0:03:45.4]} 21... Qd6 {[%clk 0:03:22]} 22. f4 {[%clk
0:03:41.6]} 22... g5 {[%clk 0:03:17.4]} 23. Qd1 {[%clk 0:03:35.9]} 23... Rxe3
{[%clk 0:03:13.6]} 24. Qxh5+ {[%clk 0:03:32.7]} 24... Kg8 {[%clk 0:03:10.9]} 25.
Nf3 {[%clk 0:03:17.6]} 25... Qxf4 {[%clk 0:03:05.2]} 26. Qg4 {[%clk 0:03:01.9]}
26... Ree8 {[%clk 0:02:03]} 27. Qxf4 {[%clk 0:02:49.8]} 27... Bxf4 {[%clk
0:02:00.8]} 28. Rxc8 {[%clk 0:02:47.8]} 28... Rxc8 {[%clk 0:02:00.7]} 29. Nh2
{[%clk 0:02:32.7]} 29... Bxh2+ {[%clk 0:01:53]} 30. Kxh2 {[%clk 0:02:30.8]}
30... Rc2 {[%clk 0:01:52]} 31. Re1 {[%clk 0:02:22.3]} 31... Kf7 {[%clk
0:01:49.6]} 32. Rb1 {[%clk 0:01:57.9]} 32... Rd2 {[%clk 0:01:44.5]} 33. b4
{[%clk 0:01:55.4]} 33... Rxd4 {[%clk 0:01:42.7]} 34. Rb3 {[%clk 0:01:54.3]}
34... Ke6 {[%clk 0:01:35]} 35. b5 {[%clk 0:01:52.6]} 35... a5 {[%clk 0:01:28.1]}
36. Rc3 {[%clk 0:01:31.7]} 36... Rc4 {[%clk 0:01:23.3]} 37. Re3+ {[%clk
0:01:26.9]} 37... Kd6 {[%clk 0:01:22.4]} 38. Rb3 {[%clk 0:01:21.1]} 38... b6
{[%clk 0:01:16.4]} 39. Re3 {[%clk 0:01:11]} 39... d4 {[%clk 0:00:51]} 40. Re8
{[%clk 0:01:03.6]} 40... d3 {[%clk 0:00:48.4]} 41. Rd8+ {[%clk 0:01:01.5]} 41...
Kc5 {[%clk 0:00:47.6]} 42. Rxd3 {[%clk 0:00:59.2]} 42... Kxb5 {[%clk 0:00:46.3]}
43. Rb3+ {[%clk 0:00:57.2]} 43... Kc5 {[%clk 0:00:41.9]} 44. Re3 {[%clk
0:00:54.6]} 44... b5 {[%clk 0:00:30.7]} 45. Re5+ {[%clk 0:00:52.1]} 45... fxe5
{[%clk 0:00:28.8]} 46. Kg3 {[%clk 0:00:49.2]} 46... b4 {[%clk 0:00:27.6]} 47.
axb4+ {[%clk 0:00:46.9]} 47... axb4 {[%clk 0:00:27.5]} 48. h4 {[%clk 0:00:43.7]}
48... gxh4+ {[%clk 0:00:25.5]} 49. Kh3 {[%clk 0:00:42.1]} 49... b3 {[%clk
0:00:24.3]} 50. g3 {[%clk 0:00:41]} 50... hxg3 {[%clk 0:00:22.7]} 0-1

[Event "Live Chess"]
[Site "Chess.com"]
[Date "2023.05.20"]
[Round "-"]
[White "YF22Raptor"]
[Black "JackRudd"]
[Result "0-1"]
[WhiteElo "999"]
[BlackElo "2424"]
[TimeControl "300"]
[EndTime "9:44:07 PDT"]
[Termination "JackRudd won on time"]

1. e4 {[%clk 0:04:56.3]} 1... c6 {[%clk 0:04:58.4]} 2. d4 {[%clk 0:04:52.1]}
2... d5 {[%clk 0:04:57.5]} 3. exd5 {[%clk 0:04:50.9]} 3... cxd5 {[%clk
0:04:56.5]} 4. Nf3 {[%clk 0:04:48.9]} 4... Nc6 {[%clk 0:04:54.6]} 5. Bb5 {[%clk
0:04:43.4]} 5... Bg4 {[%clk 0:04:52.8]} 6. h3 {[%clk 0:04:40.2]} 6... Bxf3
{[%clk 0:04:51.3]} 7. Qxf3 {[%clk 0:04:39.1]} 7... e6 {[%clk 0:04:50.5]} 8. Be3
{[%clk 0:04:32.3]} 8... Qb6 {[%clk 0:04:46.1]} 9. Bxc6+ {[%clk 0:04:29.4]} 9...
bxc6 {[%clk 0:04:45]} 10. b3 {[%clk 0:04:24.4]} 10... Ne7 {[%clk 0:04:42.8]} 11.
Nd2 {[%clk 0:04:22.5]} 11... Nf5 {[%clk 0:04:41.4]} 12. c3 {[%clk 0:04:16.6]}
12... Qa5 {[%clk 0:04:40.2]} 13. Nb1 {[%clk 0:03:55.7]} 13... Qb5 {[%clk
0:04:35.3]} 14. g4 {[%clk 0:03:43.8]} 14... Nd6 {[%clk 0:04:29.4]} 15. Bd2
{[%clk 0:03:37]} 15... Ne4 {[%clk 0:04:26.9]} 16. Qe3 {[%clk 0:03:31.5]} 16...
a5 {[%clk 0:04:24.9]} 17. f3 {[%clk 0:03:30.4]} 17... Nd6 {[%clk 0:04:17.1]} 18.
Na3 {[%clk 0:03:19.5]} 18... Qa6 {[%clk 0:04:15]} 19. Nc2 {[%clk 0:03:06.3]}
19... a4 {[%clk 0:04:11.8]} 20. Kf2 {[%clk 0:02:59.3]} 20... h5 {[%clk
0:04:07.3]} 21. bxa4 {[%clk 0:02:14.3]} 21... Nc4 {[%clk 0:04:04.3]} 22. Qe2
{[%clk 0:02:02.8]} 22... Qxa4 {[%clk 0:04:01.4]} 23. Ne3 {[%clk 0:02:00.8]}
23... Nxd2 {[%clk 0:03:57.8]} 24. Qxd2 {[%clk 0:01:59]} 24... hxg4 {[%clk
0:03:53.6]} 25. fxg4 {[%clk 0:01:51.2]} 25... Be7 {[%clk 0:03:51.2]} 26. Kf3
{[%clk 0:01:44.6]} 26... Bg5 {[%clk 0:03:47.7]} 27. Qd3 {[%clk 0:01:35.2]} 27...
Qa6 {[%clk 0:03:39.3]} 28. c4 {[%clk 0:01:27.9]} 28... Bxe3 {[%clk 0:03:36.7]}
29. Kxe3 {[%clk 0:01:24.7]} 29... dxc4 {[%clk 0:03:35.4]} 30. Qc3 {[%clk
0:01:21.1]} 30... Qa3 {[%clk 0:03:33.9]} 31. Qxa3 {[%clk 0:01:19.1]} 31... Rxh3+
{[%clk 0:03:31.3]} 32. Rxh3 {[%clk 0:01:17.4]} 32... Rxa3+ {[%clk 0:03:29.9]}
33. Kf2 {[%clk 0:01:12.6]} 33... Rxh3 {[%clk 0:03:28.4]} 34. Rc1 {[%clk
0:01:07]} 34... Ra3 {[%clk 0:03:25.7]} 35. Rxc4 {[%clk 0:01:03.7]} 35... Rxa2+
{[%clk 0:03:24.8]} 36. Kf3 {[%clk 0:01:02.5]} 36... Kd7 {[%clk 0:03:23.6]} 37.
Rc3 {[%clk 0:00:54.9]} 37... Kd6 {[%clk 0:03:22.1]} 38. Ke4 {[%clk 0:00:49.2]}
38... Ra4 {[%clk 0:03:16.6]} 39. Rc5 {[%clk 0:00:41.9]} 39... f6 {[%clk
0:03:12.9]} 40. Rh5 {[%clk 0:00:34.1]} 40... e5 {[%clk 0:03:08.3]} 41. Rh7
{[%clk 0:00:26.5]} 41... Rxd4+ {[%clk 0:03:07.2]} 42. Kf5 {[%clk 0:00:25.5]}
42... Rf4+ {[%clk 0:03:06.4]} 43. Kg6 {[%clk 0:00:23.1]} 43... Rxg4+ {[%clk
0:03:05.6]} 44. Kf5 {[%clk 0:00:21.5]} 44... Rg5+ {[%clk 0:03:04.8]} 45. Ke4
{[%clk 0:00:19.9]} 45... Ke6 {[%clk 0:03:04.1]} 46. Rh8 {[%clk 0:00:18.3]} 46...
Rg4+ {[%clk 0:03:02.9]} 47. Kf3 {[%clk 0:00:17]} 47... Kf5 {[%clk 0:03:01.8]}
48. Rh5+ {[%clk 0:00:15.2]} 48... g5 {[%clk 0:03:00.8]} 49. Rh7 {[%clk
0:00:11.7]} 49... Rc4 {[%clk 0:02:59.5]} 50. Rh2 {[%clk 0:00:06.5]} 50... g4+
{[%clk 0:02:58.1]} 51. Kg3 {[%clk 0:00:04.9]} 51... Kg5 {[%clk 0:02:57.3]} 52.
Rf2 {[%clk 0:00:03.1]} 52... f5 {[%clk 0:02:56.3]} 53. Rd2 {[%clk 0:00:01.1]}
53... f4+ {[%clk 0:02:55]} 54. Kg2 {[%clk 0:00:00.1]} 54... e4 {[%clk
0:02:54.3]} 0-1

[Event "Live Chess"]
[Site "Chess.com"]
[Date "2023.05.20"]
[Round "-"]
[White "alanmike75"]
[Black "TheSmoulderingMaster"]
[Result "0-1"]
[WhiteElo "1490"]
[BlackElo "1791"]
[TimeControl "300"]
[EndTime "9:44:14 PDT"]
[Termination "TheSmoulderingMaster won by resignation"]

1. e4 {[%clk 0:04:55.3]} 1... c5 {[%clk 0:04:58.9]} 2. Nf3 {[%clk 0:04:54]} 2...
d6 {[%clk 0:04:58.3]} 3. d4 {[%clk 0:04:53]} 3... cxd4 {[%clk 0:04:57.8]} 4.
Nxd4 {[%clk 0:04:52.1]} 4... Nf6 {[%clk 0:04:56.4]} 5. Bd3 {[%clk 0:04:50.9]}
5... g6 {[%clk 0:04:55.7]} 6. O-O {[%clk 0:04:49.7]} 6... Bg7 {[%clk 0:04:55.2]}
7. c3 {[%clk 0:04:48.7]} 7... Kf8 {[%clk 0:04:54.4]} 8. Nd2 {[%clk 0:04:46.7]}
8... Nc6 {[%clk 0:04:53.5]} 9. N2b3 {[%clk 0:04:45.3]} 9... Kg8 {[%clk
0:04:52.2]} 10. h3 {[%clk 0:04:44.3]} 10... h6 {[%clk 0:04:51.7]} 11. Be3 {[%clk
0:04:42.9]} 11... Kh7 {[%clk 0:04:51.1]} 12. Qd2 {[%clk 0:04:41.7]} 12... Re8
{[%clk 0:04:48.8]} 13. f4 {[%clk 0:04:38.7]} 13... e5 {[%clk 0:04:45.7]} 14.
Nxc6 {[%clk 0:04:36.3]} 14... bxc6 {[%clk 0:04:45.1]} 15. f5 {[%clk 0:04:35.4]}
15... Bb7 {[%clk 0:04:40.1]} 16. fxg6+ {[%clk 0:04:33.6]} 16... fxg6 {[%clk
0:04:39]} 17. c4 {[%clk 0:04:28.2]} 17... Qd7 {[%clk 0:04:36.9]} 18. Rad1 {[%clk
0:04:24.6]} 18... Rad8 {[%clk 0:04:34.8]} 19. Bc2 {[%clk 0:04:21.8]} 19... Qe6
{[%clk 0:04:33.4]} 20. Qe2 {[%clk 0:04:19.5]} 20... d5 {[%clk 0:04:22.6]} 21.
cxd5 {[%clk 0:04:17.8]} 21... cxd5 {[%clk 0:04:22]} 22. exd5 {[%clk 0:04:15.9]}
22... Nxd5 {[%clk 0:04:20.8]} 23. Be4 {[%clk 0:04:05.3]} 23... Nxe3 {[%clk
0:04:18.6]} 24. Qxe3 {[%clk 0:04:04.3]} 24... Rxd1 {[%clk 0:04:17.2]} 25. Rxd1
{[%clk 0:04:02.9]} 25... Bxe4 {[%clk 0:04:15.6]} 26. Qxe4 {[%clk 0:04:01.7]}
26... Qb6+ {[%clk 0:04:11.9]} 27. Kh1 {[%clk 0:04:00]} 27... Qa6 {[%clk
0:04:08.1]} 28. a3 {[%clk 0:03:57.1]} 28... Qb5 {[%clk 0:04:01.5]} 29. Qb4
{[%clk 0:03:51.3]} 29... Qe2 {[%clk 0:03:56.4]} 30. Re1 {[%clk 0:03:47.6]} 30...
Qxb2 {[%clk 0:03:53.4]} 31. Nc5 {[%clk 0:03:39.9]} 31... Qxb4 {[%clk 0:03:42.3]}
32. axb4 {[%clk 0:03:38.5]} 32... Bf8 {[%clk 0:03:40]} 33. Nd7 {[%clk
0:03:25.1]} 33... Bxb4 {[%clk 0:03:37.4]} 34. Rxe5 {[%clk 0:03:23.6]} 34... Rxe5
{[%clk 0:03:35.6]} 35. Nxe5 {[%clk 0:03:22.3]} 35... a5 {[%clk 0:03:34.8]} 36.
Nc6 {[%clk 0:03:04.2]} 36... Bc3 {[%clk 0:03:33.8]} 37. Ne7 {[%clk 0:02:55.5]}
37... a4 {[%clk 0:03:32.6]} 38. Nd5 {[%clk 0:02:54.4]} 38... Bd2 {[%clk
0:03:28.4]} 0-1

[Event "Live Chess"]
[Site "Chess.com"]
[Date "2023.05.20"]
[Round "-"]
[White "wot-not"]
[Black "fgreen"]
[Result "1-0"]
[WhiteElo "1474"]
[BlackElo "1366"]
[TimeControl "300"]
[EndTime "9:44:18 PDT"]
[Termination "wot-not won on time"]

1. e4 {[%clk 0:04:57.2]} 1... d6 {[%clk 0:04:56.8]} 2. f4 {[%clk 0:04:56.3]}
2... g6 {[%clk 0:04:53.3]} 3. Nf3 {[%clk 0:04:55.6]} 3... h5 {[%clk 0:04:45.5]}
4. d4 {[%clk 0:04:53.7]} 4... Bg7 {[%clk 0:04:33]} 5. Bc4 {[%clk 0:04:51.5]}
5... e6 {[%clk 0:04:31.2]} 6. O-O {[%clk 0:04:45.3]} 6... Nh6 {[%clk 0:04:25]}
7. c3 {[%clk 0:04:41.2]} 7... c6 {[%clk 0:03:52.4]} 8. Be3 {[%clk 0:04:38.8]}
8... d5 {[%clk 0:03:46.1]} 9. Bd3 {[%clk 0:04:35]} 9... Ng4 {[%clk 0:03:33]} 10.
Bf2 {[%clk 0:04:28.9]} 10... Nxf2 {[%clk 0:03:29.1]} 11. Rxf2 {[%clk 0:04:27.1]}
11... Nd7 {[%clk 0:03:12.1]} 12. e5 {[%clk 0:04:25.4]} 12... h4 {[%clk
0:02:52.4]} 13. h3 {[%clk 0:04:17.7]} 13... Nb6 {[%clk 0:02:23.8]} 14. b3 {[%clk
0:04:10.6]} 14... Bh6 {[%clk 0:02:17]} 15. Nh2 {[%clk 0:04:05]} 15... g5 {[%clk
0:01:56.1]} 16. Ng4 {[%clk 0:03:46.7]} 16... Bg7 {[%clk 0:01:43.6]} 17. Nd2
{[%clk 0:03:39.1]} 17... Bd7 {[%clk 0:01:39.4]} 18. Qc1 {[%clk 0:03:25.6]} 18...
Qe7 {[%clk 0:01:34.5]} 19. Nf3 {[%clk 0:03:21.7]} 19... gxf4 {[%clk 0:01:28]}
20. Qxf4 {[%clk 0:03:17.6]} 20... O-O-O {[%clk 0:01:24.9]} 21. Nfh2 {[%clk
0:03:03.2]} 21... Rdg8 {[%clk 0:01:20.8]} 22. Qxf7 {[%clk 0:02:58.4]} 22... Qxf7
{[%clk 0:01:02.1]} 23. Rxf7 {[%clk 0:02:57]} 23... Be8 {[%clk 0:00:55.3]} 24.
Rf2 {[%clk 0:02:49.4]} 24... Bh5 {[%clk 0:00:53.8]} 25. Raf1 {[%clk 0:02:46.8]}
25... Nd7 {[%clk 0:00:44.5]} 26. Nf6 {[%clk 0:02:31]} 26... Nxf6 {[%clk
0:00:35.8]} 27. exf6 {[%clk 0:02:29.8]} 27... Bh6 {[%clk 0:00:33.7]} 28. Kh1
{[%clk 0:02:10.1]} 28... Rf8 {[%clk 0:00:31.5]} 29. Ng4 {[%clk 0:02:02.9]} 29...
Bxg4 {[%clk 0:00:28.5]} 30. hxg4 {[%clk 0:02:02.4]} 30... Be3 {[%clk 0:00:23.5]}
31. Rf3 {[%clk 0:01:57.4]} 31... Bd2 {[%clk 0:00:21.3]} 32. Bg6 {[%clk
0:01:51.6]} 32... Bh6 {[%clk 0:00:15.7]} 33. f7 {[%clk 0:01:48.5]} 33... Bg7
{[%clk 0:00:13]} 34. Bh5 {[%clk 0:01:44.2]} 34... Kd7 {[%clk 0:00:10.6]} 35. Kh2
{[%clk 0:01:43.4]} 35... Ke7 {[%clk 0:00:09.2]} 36. Kh3 {[%clk 0:01:42.7]} 36...
a5 {[%clk 0:00:03.2]} 37. Kxh4 {[%clk 0:01:41.7]} 1-0

[Event "Live Chess"]
[Site "Chess.com"]
[Date "2023.05.20"]
[Round "-"]
[White "alexlines8"]
[Black "ZackirtyChess"]
[Result "1/2-1/2"]
[WhiteElo "1268"]
[BlackElo "1150"]
[TimeControl "300"]
[EndTime "9:44:21 PDT"]
[Termination "Game drawn by repetition"]

1. e4 {[%clk 0:04:58.1]} 1... e5 {[%clk 0:04:59.1]} 2. Nc3 {[%clk 0:04:56.6]}
2... Nc6 {[%clk 0:04:56]} 3. Bc4 {[%clk 0:04:54.5]} 3... Nf6 {[%clk 0:04:52.1]}
4. d3 {[%clk 0:04:51.6]} 4... Bb4 {[%clk 0:04:50.4]} 5. Bd2 {[%clk 0:04:49.1]}
5... h6 {[%clk 0:04:48.6]} 6. Nf3 {[%clk 0:04:44.6]} 6... Bxc3 {[%clk
0:04:47.7]} 7. Bxc3 {[%clk 0:04:43.3]} 7... d5 {[%clk 0:04:47.1]} 8. exd5 {[%clk
0:04:35.7]} 8... Nxd5 {[%clk 0:04:47]} 9. Nxe5 {[%clk 0:04:26.5]} 9... Nxc3
{[%clk 0:04:42.6]} 10. Bxf7+ {[%clk 0:04:04.4]} 10... Kf8 {[%clk 0:04:37.9]} 11.
Qh5 {[%clk 0:03:46.1]} 11... Nxe5 {[%clk 0:04:34.8]} 12. Qxe5 {[%clk 0:03:41]}
12... Kxf7 {[%clk 0:04:28.5]} 13. Qxc3 {[%clk 0:03:39.6]} 13... Be6 {[%clk
0:04:24.6]} 14. O-O {[%clk 0:03:35.1]} 14... Rg8 {[%clk 0:04:21.1]} 15. Rfe1
{[%clk 0:03:27.2]} 15... Qf6 {[%clk 0:04:12.8]} 16. Qxc7+ {[%clk 0:03:06.4]}
16... Qe7 {[%clk 0:04:07.3]} 17. Qf4+ {[%clk 0:02:53.9]} 17... Qf6 {[%clk
0:04:03]} 18. Qc7+ {[%clk 0:02:46.3]} 18... Qe7 {[%clk 0:04:00.9]} 19. Qf4+
{[%clk 0:02:45.1]} 19... Kg6 {[%clk 0:03:56.8]} 20. Qe4+ {[%clk 0:02:32.9]}
20... Kf6 {[%clk 0:03:47.6]} 21. Qe5+ {[%clk 0:02:19.9]} 21... Kf7 {[%clk
0:03:43.7]} 22. Qf4+ {[%clk 0:02:17.5]} 1/2-1/2